[Event "Titled Tuesday Blitz November 01 Early 2022"]
[White "Bordi, Kevin"]
[Black "Ovchinnikov, Vsevolod"]
[WhiteFideId "621862"]
[BlackFideId "24176842"]
[WhiteElo "2806"]
[BlackElo "2376"]
[Result "1/2-1/2"]
[Round "04"]
[TimeControl "180+1"]
[Date "2022.11.01"]
[WhiteClock "0:00:04"]
[BlackClock "0:00:08"]

1. e4 {[%clk 0:03:00]}  g6 {[%clk 0:02:59]} 2. d4 {[%clk 0:03:01]}  Bg7 {[%clk 0:03:00]} 3. Nc3 {[%clk 0:03:01]}  a6 {[%clk 0:03:01]} 4. g3 {[%clk 0:03:02]}  d6 {[%clk 0:03:00]} 5. Bg2 {[%clk 0:03:02]}  Nf6 {[%clk 0:03:01]} 6. Nge2 {[%clk 0:03:03]}  O-O {[%clk 0:03:02]} 7. O-O {[%clk 0:03:03]}  Nbd7 {[%clk 0:03:02]} 8. h3 {[%clk 0:03:03]}  Rb8 {[%clk 0:03:03]} 9. Be3 {[%clk 0:03:01]}  b5 {[%clk 0:03:03]} 10. a3 {[%clk 0:03:01]}  Bb7 {[%clk 0:02:59]} 11. g4 {[%clk 0:03:00]}  Nb6 {[%clk 0:02:48]} 12. b3 {[%clk 0:02:57]}  Nfd7 {[%clk 0:02:43]} 13. Qd2 {[%clk 0:02:49]}  e6 {[%clk 0:02:37]} 14. Bg5 {[%clk 0:02:44]}  Bf6 {[%clk 0:02:34]} 15. Bxf6 {[%clk 0:02:41]}  Qxf6 {[%clk 0:02:32]} 16. Rad1 {[%clk 0:02:40]}  e5 {[%clk 0:02:11]} 17. f4 {[%clk 0:02:39]}  exd4 {[%clk 0:02:09]} 18. Qxd4 {[%clk 0:02:39]}  Qxd4+ {[%clk 0:02:07]} 19. Nxd4 {[%clk 0:02:40]}  Rfe8 {[%clk 0:02:07]} 20. Rfe1 {[%clk 0:02:40]}  Re7 {[%clk 0:02:02]} 21. e5 {[%clk 0:02:31]}  dxe5 {[%clk 0:01:58]} 22. Bxb7 {[%clk 0:02:26]}  Rxb7 {[%clk 0:01:59]} 23. Nc6 {[%clk 0:02:25]}  Re8 {[%clk 0:02:00]} 24. fxe5 {[%clk 0:02:17]}  Kg7 {[%clk 0:01:45]} 25. Kf2 {[%clk 0:01:56]}  Nb8 {[%clk 0:01:21]} 26. Nd8 {[%clk 0:01:46]}  Ra7 {[%clk 0:01:21]} 27. e6 {[%clk 0:01:46]}  f6 {[%clk 0:01:09]} 28. Ne4 {[%clk 0:01:03]}  Nc8 {[%clk 0:00:36]} 29. Kg3 {[%clk 0:00:41]}  Ne7 {[%clk 0:00:34]} 30. Nc5 {[%clk 0:00:33]}  a5 {[%clk 0:00:30]} 31. Re2 {[%clk 0:00:27]}  Na6 {[%clk 0:00:16]} 32. Nxa6 {[%clk 0:00:23]}  Rxa6 {[%clk 0:00:17]} 33. Rd7 {[%clk 0:00:23]}  Rd6 {[%clk 0:00:05]} 34. Rxd6 {[%clk 0:00:19]}  cxd6 {[%clk 0:00:06]} 35. Nf7 {[%clk 0:00:20]}  d5 {[%clk 0:00:05]} 36. Nd6 {[%clk 0:00:16]}  Rd8 {[%clk 0:00:05]} 37. Nxb5 {[%clk 0:00:16]}  f5 {[%clk 0:00:04]} 38. Nd4 {[%clk 0:00:16]}  Kf6 {[%clk 0:00:04]} 39. gxf5 {[%clk 0:00:13]}  gxf5 {[%clk 0:00:05]} 40. c3 {[%clk 0:00:13]}  Rc8 {[%clk 0:00:05]} 41. Re3 {[%clk 0:00:11]}  Ng6 {[%clk 0:00:05]} 42. Rd3 {[%clk 0:00:09]}  Ne5 {[%clk 0:00:05]} 43. Re3 {[%clk 0:00:08]}  Ng6 {[%clk 0:00:05]} 44. Re1 {[%clk 0:00:08]}  Rxc3+ {[%clk 0:00:04]} 45. Kh2 {[%clk 0:00:09]}  Ne7 {[%clk 0:00:04]} 46. b4 {[%clk 0:00:05]}  axb4 {[%clk 0:00:04]} 47. axb4 {[%clk 0:00:06]}  Rc4 {[%clk 0:00:05]} 48. Rd1 {[%clk 0:00:06]}  Rxb4 {[%clk 0:00:05]} 49. Kg3 {[%clk 0:00:07]}  Rc4 {[%clk 0:00:05]} 50. Kf3 {[%clk 0:00:07]}  Rc3+ {[%clk 0:00:06]} 51. Kg2 {[%clk 0:00:07]}  Ng6 {[%clk 0:00:05]} 52. Re1 {[%clk 0:00:07]}  Rd3 {[%clk 0:00:05]} 53. Nc6 {[%clk 0:00:06]}  Ne7 {[%clk 0:00:04]} 54. Ne5 {[%clk 0:00:06]}  Rd2+ {[%clk 0:00:04]} 55. Kg3 {[%clk 0:00:06]}  Rd4 {[%clk 0:00:04]} 56. Nd7+ {[%clk 0:00:06]}  Kg5 {[%clk 0:00:04]} 57. Ne5 {[%clk 0:00:05]}  Re4 {[%clk 0:00:04]} 58. Nf7+ {[%clk 0:00:04]}  Kf6 {[%clk 0:00:04]} 59. Rf1 {[%clk 0:00:04]}  Kxe6 {[%clk 0:00:04]} 60. Ng5+ {[%clk 0:00:05]}  Ke5 {[%clk 0:00:05]} 61. Nxe4 {[%clk 0:00:05]}  dxe4 {[%clk 0:00:06]} 62. Ra1 {[%clk 0:00:05]}  Nd5 {[%clk 0:00:07]} 63. Ra7 {[%clk 0:00:05]}  f4+ {[%clk 0:00:06]} 64. Kf2 {[%clk 0:00:06]}  Nf6 {[%clk 0:00:05]} 65. Ra5+ {[%clk 0:00:06]}  Ke6 {[%clk 0:00:06]} 66. Ra6+ {[%clk 0:00:06]}  Kf5 {[%clk 0:00:06]} 67. Ra5+ {[%clk 0:00:06]}  Ke6 {[%clk 0:00:05]} 68. Ke2 {[%clk 0:00:07]}  Nd5 {[%clk 0:00:04]} 69. Ra7 {[%clk 0:00:07]}  Ke5 {[%clk 0:00:04]} 70. Rxh7 {[%clk 0:00:07]}  f3+ {[%clk 0:00:05]} 71. Kf2 {[%clk 0:00:08]}  Kf4 {[%clk 0:00:05]} 72. Rf7+ {[%clk 0:00:08]}  Ke5 {[%clk 0:00:05]} 73. Rf8 {[%clk 0:00:08]}  Nf4 {[%clk 0:00:04]} 74. h4 {[%clk 0:00:08]}  Ng6 {[%clk 0:00:04]} 75. Re8+ {[%clk 0:00:07]}  Kf5 {[%clk 0:00:04]} 76. h5 {[%clk 0:00:07]}  Nf4 {[%clk 0:00:04]} 77. h6 {[%clk 0:00:07]}  Nh3+ {[%clk 0:00:05]} 78. Kg3 {[%clk 0:00:07]}  Ng5 {[%clk 0:00:05]} 79. Re7 {[%clk 0:00:07]}  Kg6 {[%clk 0:00:05]} 80. h7 {[%clk 0:00:03]}  Nxh7 {[%clk 0:00:06]} 81. Rxe4 {[%clk 0:00:03]}  Ng5 {[%clk 0:00:06]} 82. Rg4 {[%clk 0:00:04]}  Kf5 {[%clk 0:00:07]} 83. Rf4+ {[%clk 0:00:04]}  Kg6 {[%clk 0:00:07]} 84. Rf8 {[%clk 0:00:05]}  Ne6 {[%clk 0:00:06]} 85. Rxf3 {[%clk 0:00:04]}  Kg5 {[%clk 0:00:06]} 86. Ra3 {[%clk 0:00:05]}  Nd4 {[%clk 0:00:06]} 87. Ra5+ {[%clk 0:00:06]}  Nf5+ {[%clk 0:00:07]} 88. Kf3 {[%clk 0:00:06]}  Kf6 {[%clk 0:00:07]} 89. Kf4 {[%clk 0:00:07]}  Nd6 {[%clk 0:00:08]} 90. Rd5 {[%clk 0:00:07]}  Ke6 {[%clk 0:00:08]} 91. Rh5 {[%clk 0:00:07]}  Kf6 {[%clk 0:00:08]} 92. Rh6+ {[%clk 0:00:07]}  Ke7 {[%clk 0:00:09]} 93. Rg6 {[%clk 0:00:05]}  Nf7 {[%clk 0:00:08]} 94. Kf5 {[%clk 0:00:05]}  Nd6+ {[%clk 0:00:09]} 95. Ke5 {[%clk 0:00:05]}  Nf7+ {[%clk 0:00:09]} 96. Kd5 {[%clk 0:00:06]}  Kd7 {[%clk 0:00:09]} 97. Re6 {[%clk 0:00:05]}  Nd8 {[%clk 0:00:10]} 98. Ra6 {[%clk 0:00:05]}  Ke7 {[%clk 0:00:09]} 99. Ke5 {[%clk 0:00:06]}  Nf7+ {[%clk 0:00:09]} 100. Kf5 {[%clk 0:00:06]}  Nd6+ {[%clk 0:00:09]} 101. Ke5 {[%clk 0:00:07]}  Nf7+ {[%clk 0:00:09]} 102. Kd5 {[%clk 0:00:08]}  Nd8 {[%clk 0:00:08]} 103. Ra8 {[%clk 0:00:08]}  Nf7 {[%clk 0:00:08]} 104. Ra7+ {[%clk 0:00:06]}  Kf6 {[%clk 0:00:08]} 105. Ra6+ {[%clk 0:00:06]}  Ke7 {[%clk 0:00:08]} 106. Ke4 {[%clk 0:00:05]}  Nd6+ {[%clk 0:00:08]} 107. Kf4 {[%clk 0:00:06]}  Nf7 {[%clk 0:00:09]} 108. Kf5 {[%clk 0:00:07]}  Nd6+ {[%clk 0:00:09]} 109. Kg6 {[%clk 0:00:06]}  Nc4 {[%clk 0:00:07]} 110. Rc6 {[%clk 0:00:04]}  Ne5+ {[%clk 0:00:07]} 111. Kh5 {[%clk 0:00:04]}  Nxc6 {[%clk 0:00:08]} 1/2-1/2


[Site "https://www.chess.com"]

[Event "Titled Tuesday Blitz November 01 Early 2022"]
[White "Brueckner, Thomas"]
[Black "Zhu, Jiner"]
[WhiteFideId "4600452"]
[BlackFideId "8608059"]
[WhiteElo "2332"]
[BlackElo "2384"]
[Result "0-1"]
[Round "04"]
[TimeControl "180+1"]
[Date "2022.11.02"]
[WhiteClock "0:00:02"]
[BlackClock "0:00:28"]

1. e4 {[%clk 0:03:00]}  e5 {[%clk 0:02:59]} 2. Nf3 {[%clk 0:03:00]}  Nc6 {[%clk 0:02:59]} 3. Bc4 {[%clk 0:03:00]}  Bc5 {[%clk 0:03:00]} 4. O-O {[%clk 0:02:55]}  Nf6 {[%clk 0:02:59]} 5. d3 {[%clk 0:02:55]}  h6 {[%clk 0:02:58]} 6. c3 {[%clk 0:02:52]}  d6 {[%clk 0:02:57]} 7. Re1 {[%clk 0:02:43]}  O-O {[%clk 0:02:55]} 8. h3 {[%clk 0:02:38]}  a6 {[%clk 0:02:55]} 9. a4 {[%clk 0:02:37]}  Be6 {[%clk 0:02:45]} 10. Bxe6 {[%clk 0:02:36]}  fxe6 {[%clk 0:02:46]} 11. b4 {[%clk 0:02:35]}  Ba7 {[%clk 0:02:46]} 12. Nbd2 {[%clk 0:02:31]}  Qe8 {[%clk 0:02:41]} 13. Nf1 {[%clk 0:02:30]}  Nh5 {[%clk 0:02:40]} 14. Ra2 {[%clk 0:02:01]}  Nf4 {[%clk 0:02:32]} 15. Kh2 {[%clk 0:01:51]}  Qf7 {[%clk 0:02:25]} 16. Ng3 {[%clk 0:01:10]}  a5 {[%clk 0:02:23]} 17. b5 {[%clk 0:01:09]}  Nb8 {[%clk 0:02:20]} 18. Be3 {[%clk 0:01:03]}  Nd7 {[%clk 0:02:10]} 19. Bxa7 {[%clk 0:00:58]}  Rxa7 {[%clk 0:02:11]} 20. Re3 {[%clk 0:00:54]}  Raa8 {[%clk 0:02:06]} 21. Rc2 {[%clk 0:00:35]}  Nc5 {[%clk 0:02:02]} 22. d4 {[%clk 0:00:25]}  exd4 {[%clk 0:02:00]} 23. cxd4 {[%clk 0:00:25]}  Nxa4 {[%clk 0:01:59]} 24. Qc1 {[%clk 0:00:19]}  Rfc8 {[%clk 0:01:40]} 25. Ra3 {[%clk 0:00:17]}  Nb6 {[%clk 0:01:39]} 26. Rac3 {[%clk 0:00:17]}  a4 {[%clk 0:00:42]} 27. Rxc7 {[%clk 0:00:16]}  Qf8 {[%clk 0:00:41]} 28. Rxc8 {[%clk 0:00:14]}  Rxc8 {[%clk 0:00:41]} 29. Rxc8 {[%clk 0:00:14]}  Nxc8 {[%clk 0:00:42]} 30. Qa3 {[%clk 0:00:13]}  Nb6 {[%clk 0:00:41]} 31. Qc3 {[%clk 0:00:07]}  d5 {[%clk 0:00:37]} 32. e5 {[%clk 0:00:05]}  a3 {[%clk 0:00:28]} 33. Qb3 {[%clk 0:00:02]}  Qa8 {[%clk 0:00:28]} 34. Qa2 {[%clk 0:00:02]}  Qa4 {[%clk 0:00:28]} 0-1


[Site "https://www.chess.com"]

[Event "Titled Tuesday Blitz November 01 Early 2022"]
[White "Buscar, Michael"]
[Black "Gabdrakhmanov, Azat"]
[WhiteFideId "2603616"]
[BlackFideId "34189197"]
[WhiteElo "2010"]
[BlackElo "2233"]
[Result "0-1"]
[Round "04"]
[TimeControl "180+1"]
[Date "2022.11.02"]
[WhiteClock "0:00:07"]
[BlackClock "0:00:13"]

1. d4 {[%clk 0:03:00]}  Nf6 {[%clk 0:02:59]} 2. c4 {[%clk 0:03:00]}  g6 {[%clk 0:03:00]} 3. Nc3 {[%clk 0:02:59]}  Bg7 {[%clk 0:03:01]} 4. e4 {[%clk 0:02:59]}  O-O {[%clk 0:03:01]} 5. Nf3 {[%clk 0:03:00]}  d6 {[%clk 0:03:01]} 6. Be2 {[%clk 0:03:00]}  e5 {[%clk 0:03:02]} 7. Be3 {[%clk 0:02:59]}  Nc6 {[%clk 0:02:59]} 8. d5 {[%clk 0:02:59]}  Ne7 {[%clk 0:02:59]} 9. b4 {[%clk 0:02:52]}  Ng4 {[%clk 0:02:57]} 10. Bg5 {[%clk 0:02:52]}  f5 {[%clk 0:02:55]} 11. Nd2 {[%clk 0:02:45]}  Nf6 {[%clk 0:02:54]} 12. f3 {[%clk 0:02:42]}  h6 {[%clk 0:02:44]} 13. Be3 {[%clk 0:02:41]}  Nh5 {[%clk 0:02:42]} 14. c5 {[%clk 0:02:28]}  Nf4 {[%clk 0:02:40]} 15. O-O {[%clk 0:02:21]}  g5 {[%clk 0:01:30]} 16. cxd6 {[%clk 0:02:13]}  cxd6 {[%clk 0:01:30]} 17. Nb5 {[%clk 0:02:12]}  a6 {[%clk 0:01:26]} 18. Na7 {[%clk 0:02:06]}  Bd7 {[%clk 0:01:21]} 19. b5 {[%clk 0:02:00]}  g4 {[%clk 0:00:46]} 20. bxa6 {[%clk 0:01:42]}  bxa6 {[%clk 0:00:41]} 21. Bxa6 {[%clk 0:01:33]}  Qa5 {[%clk 0:00:35]} 22. Bc4 {[%clk 0:00:57]}  Rxa7 {[%clk 0:00:35]} 23. Bxa7 {[%clk 0:00:53]}  Qxa7+ {[%clk 0:00:33]} 24. Kh1 {[%clk 0:00:54]}  gxf3 {[%clk 0:00:33]} 25. Qxf3 {[%clk 0:00:46]}  Qd4 {[%clk 0:00:29]} 26. Rad1 {[%clk 0:00:38]}  Neg6 {[%clk 0:00:24]} 27. Bb3 {[%clk 0:00:28]}  Nh4 {[%clk 0:00:20]} 28. Qg3 {[%clk 0:00:27]}  Nhxg2 {[%clk 0:00:20]} 29. exf5 {[%clk 0:00:18]}  Ne3 {[%clk 0:00:19]} 30. Rg1 {[%clk 0:00:15]}  Nxf5 {[%clk 0:00:19]} 31. Qf3 {[%clk 0:00:14]}  Qe3 {[%clk 0:00:17]} 32. Qg4 {[%clk 0:00:09]}  h5 {[%clk 0:00:14]} 33. Qg5 {[%clk 0:00:09]}  Nh3 {[%clk 0:00:14]} 34. Rg2 {[%clk 0:00:07]}  Nxg5 {[%clk 0:00:13]} 0-1


[Site "https://www.chess.com"]

[Event "Titled Tuesday Blitz November 01 Early 2022"]
[White "Cabezas Solano, David Alejandro"]
[Black "Shuvalova, Polina"]
[WhiteFideId "6507522"]
[BlackFideId "24171760"]
[WhiteElo "2035"]
[BlackElo "2392"]
[Result "0-1"]
[Round "04"]
[TimeControl "180+1"]
[Date "2022.11.02"]
[WhiteClock "0:00:01"]
[BlackClock "0:00:03"]

1. d4 {[%clk 0:03:00]}  Nf6 {[%clk 0:02:59]} 2. c4 {[%clk 0:02:59]}  e6 {[%clk 0:03:00]} 3. Nf3 {[%clk 0:02:59]}  d5 {[%clk 0:03:00]} 4. g3 {[%clk 0:02:59]}  Bb4+ {[%clk 0:02:59]} 5. Bd2 {[%clk 0:02:50]}  Be7 {[%clk 0:02:59]} 6. Bg2 {[%clk 0:02:48]}  Nbd7 {[%clk 0:02:59]} 7. O-O {[%clk 0:02:48]}  O-O {[%clk 0:03:00]} 8. Qc2 {[%clk 0:02:48]}  c6 {[%clk 0:03:00]} 9. Bf4 {[%clk 0:02:46]}  h6 {[%clk 0:02:58]} 10. Nbd2 {[%clk 0:02:44]}  Nh5 {[%clk 0:02:57]} 11. Be5 {[%clk 0:02:23]}  f6 {[%clk 0:02:47]} 12. Bf4 {[%clk 0:02:19]}  Nxf4 {[%clk 0:02:47]} 13. gxf4 {[%clk 0:02:20]}  f5 {[%clk 0:02:48]} 14. e3 {[%clk 0:02:16]}  Nf6 {[%clk 0:02:47]} 15. Ne5 {[%clk 0:02:15]}  Bd7 {[%clk 0:02:46]} 16. c5 {[%clk 0:02:03]}  Be8 {[%clk 0:02:43]} 17. Kh1 {[%clk 0:01:58]}  Bh5 {[%clk 0:02:38]} 18. Rg1 {[%clk 0:01:57]}  Kh7 {[%clk 0:02:34]} 19. Bf3 {[%clk 0:01:45]}  Qe8 {[%clk 0:02:33]} 20. Qd1 {[%clk 0:01:43]}  Rg8 {[%clk 0:02:23]} 21. Rg3 {[%clk 0:01:37]}  Bxf3+ {[%clk 0:02:22]} 22. Qxf3 {[%clk 0:01:36]}  Qh5 {[%clk 0:01:59]} 23. Qxh5 {[%clk 0:00:56]}  Nxh5 {[%clk 0:01:58]} 24. Rg6 {[%clk 0:00:57]}  Nf6 {[%clk 0:01:34]} 25. Rag1 {[%clk 0:00:54]}  Rac8 {[%clk 0:01:33]} 26. Ndf3 {[%clk 0:00:45]}  b6 {[%clk 0:01:21]} 27. b4 {[%clk 0:00:42]}  a5 {[%clk 0:01:18]} 28. a3 {[%clk 0:00:34]}  bxc5 {[%clk 0:01:15]} 29. dxc5 {[%clk 0:00:33]}  axb4 {[%clk 0:01:13]} 30. axb4 {[%clk 0:00:33]}  Ne4 {[%clk 0:00:57]} 31. Rxe6 {[%clk 0:00:28]}  Bf6 {[%clk 0:00:48]} 32. Rxc6 {[%clk 0:00:16]}  Rxc6 {[%clk 0:00:46]} 33. Nxc6 {[%clk 0:00:15]}  Nxf2+ {[%clk 0:00:47]} 34. Kg2 {[%clk 0:00:15]}  Ng4 {[%clk 0:00:46]} 35. Re1 {[%clk 0:00:07]}  Bc3 {[%clk 0:00:38]} 36. Re2 {[%clk 0:00:06]}  Re8 {[%clk 0:00:37]} 37. Nfe5 {[%clk 0:00:04]}  Nxe5 {[%clk 0:00:35]} 38. fxe5 {[%clk 0:00:04]}  f4 {[%clk 0:00:13]} 39. exf4 {[%clk 0:00:02]}  d4 {[%clk 0:00:13]} 40. Kf3 {[%clk 0:00:02]}  d3 {[%clk 0:00:13]} 41. Re3 {[%clk 0:00:01]}  d2 {[%clk 0:00:13]} 42. Rd3 {[%clk 0:00:02]}  Ra8 {[%clk 0:00:10]} 43. Ke2 {[%clk 0:00:01]}  Ra3 {[%clk 0:00:06]} 44. e6 {[%clk 0:00:01]}  Kg8 {[%clk 0:00:03]} 0-1


[Site "https://www.chess.com"]

[Event "Titled Tuesday Blitz November 01 Early 2022"]
[White "Chan, Kim Yew"]
[Black "Luxama, Jacques Muller"]
[WhiteFideId "5717981"]
[BlackFideId "11900113"]
[WhiteElo "2206"]
[BlackElo "1931"]
[Result "0-1"]
[Round "04"]
[TimeControl "180+1"]
[Date "2022.11.02"]
[WhiteClock "0:00:01"]
[BlackClock "0:00:09"]

1. d4 {[%clk 0:03:00]}  Nf6 {[%clk 0:02:59]} 2. Nf3 {[%clk 0:03:00]}  e6 {[%clk 0:02:59]} 3. e3 {[%clk 0:03:00]}  d5 {[%clk 0:02:59]} 4. Bd3 {[%clk 0:03:00]}  Bd6 {[%clk 0:02:57]} 5. b3 {[%clk 0:02:57]}  Nbd7 {[%clk 0:02:56]} 6. Bb2 {[%clk 0:02:57]}  Qe7 {[%clk 0:02:56]} 7. O-O {[%clk 0:02:56]}  O-O {[%clk 0:02:55]} 8. Nbd2 {[%clk 0:02:56]}  a5 {[%clk 0:02:55]} 9. a3 {[%clk 0:02:54]}  e5 {[%clk 0:02:55]} 10. dxe5 {[%clk 0:02:49]}  Nxe5 {[%clk 0:02:55]} 11. Be2 {[%clk 0:02:43]}  c6 {[%clk 0:02:50]} 12. c4 {[%clk 0:02:42]}  dxc4 {[%clk 0:02:48]} 13. Nxc4 {[%clk 0:02:41]}  Nxc4 {[%clk 0:02:45]} 14. bxc4 {[%clk 0:02:13]}  Bf5 {[%clk 0:02:32]} 15. Nd4 {[%clk 0:02:12]}  Bg6 {[%clk 0:02:30]} 16. Qb3 {[%clk 0:01:57]}  Ne4 {[%clk 0:02:26]} 17. Rfd1 {[%clk 0:01:21]}  Bxh2+ {[%clk 0:02:20]} 18. Kxh2 {[%clk 0:00:59]}  Qh4+ {[%clk 0:02:19]} 19. Kg1 {[%clk 0:01:00]}  Qxf2+ {[%clk 0:02:18]} 20. Kh2 {[%clk 0:01:00]}  Qg3+ {[%clk 0:01:54]} 21. Kg1 {[%clk 0:00:59]}  Qf2+ {[%clk 0:01:51]} 22. Kh2 {[%clk 0:00:59]}  a4 {[%clk 0:01:16]} 23. Qb6 {[%clk 0:00:22]}  Qg3+ {[%clk 0:01:10]} 24. Kg1 {[%clk 0:00:22]}  Qxe3+ {[%clk 0:01:10]} 25. Kh2 {[%clk 0:00:22]}  Rae8 {[%clk 0:00:50]} 26. Rd3 {[%clk 0:00:06]}  Qf4+ {[%clk 0:00:43]} 27. Kg1 {[%clk 0:00:07]}  Qf2+ {[%clk 0:00:41]} 28. Kh2 {[%clk 0:00:05]}  Re5 {[%clk 0:00:30]} 29. Rh3 {[%clk 0:00:04]}  Qf4+ {[%clk 0:00:25]} 30. Kg1 {[%clk 0:00:04]}  Ng5 {[%clk 0:00:20]} 31. Rf3 {[%clk 0:00:01]}  Nxf3+ {[%clk 0:00:19]} 32. Bxf3 {[%clk 0:00:01]}  Qe3+ {[%clk 0:00:15]} 33. Kh2 {[%clk 0:00:02]}  Qf4+ {[%clk 0:00:12]} 34. Kg1 {[%clk 0:00:02]}  Rg5 {[%clk 0:00:11]} 35. Rf1 {[%clk 0:00:01]}  Qe3+ {[%clk 0:00:11]} 36. Rf2 {[%clk 0:00:01]}  Re8 {[%clk 0:00:09]} 0-1


[Site "https://www.chess.com"]

[Event "Titled Tuesday Blitz November 01 Early 2022"]
[White "Colas, Joshua"]
[Black "Terry, Renato"]
[WhiteFideId "2044447"]
[BlackFideId "3803457"]
[WhiteElo "2347"]
[BlackElo "2577"]
[Result "0-1"]
[Round "04"]
[TimeControl "180+1"]
[Date "2022.11.01"]
[WhiteClock "0:00:01"]
[BlackClock "0:00:27"]

1. Nf3 {[%clk 0:03:00]}  b5 {[%clk 0:02:57]} 2. d4 {[%clk 0:02:50]}  Bb7 {[%clk 0:02:57]} 3. e3 {[%clk 0:02:49]}  a6 {[%clk 0:02:52]} 4. c4 {[%clk 0:02:49]}  bxc4 {[%clk 0:02:48]} 5. Bxc4 {[%clk 0:02:50]}  e6 {[%clk 0:02:48]} 6. O-O {[%clk 0:02:48]}  Nf6 {[%clk 0:02:49]} 7. Nc3 {[%clk 0:02:48]}  d5 {[%clk 0:02:45]} 8. Bd3 {[%clk 0:02:39]}  c5 {[%clk 0:02:46]} 9. b3 {[%clk 0:02:08]}  Nc6 {[%clk 0:02:43]} 10. dxc5 {[%clk 0:02:06]}  Bxc5 {[%clk 0:02:43]} 11. Bb2 {[%clk 0:02:06]}  O-O {[%clk 0:02:43]} 12. Na4 {[%clk 0:02:07]}  Bd6 {[%clk 0:02:37]} 13. Rc1 {[%clk 0:02:04]}  Qe7 {[%clk 0:02:35]} 14. Bb1 {[%clk 0:01:56]}  Rac8 {[%clk 0:02:29]} 15. Qe2 {[%clk 0:01:40]}  Ne4 {[%clk 0:01:57]} 16. Rfd1 {[%clk 0:01:37]}  f5 {[%clk 0:01:57]} 17. Nd4 {[%clk 0:01:22]}  Ne5 {[%clk 0:01:43]} 18. f3 {[%clk 0:01:16]}  Nf6 {[%clk 0:01:40]} 19. Qe1 {[%clk 0:00:58]}  Ng6 {[%clk 0:01:07]} 20. Nc3 {[%clk 0:00:51]}  Nh5 {[%clk 0:01:06]} 21. Nce2 {[%clk 0:00:51]}  Qg5 {[%clk 0:01:00]} 22. Qf2 {[%clk 0:00:48]}  Rfe8 {[%clk 0:00:55]} 23. Rxc8 {[%clk 0:00:44]}  Bxc8 {[%clk 0:00:56]} 24. f4 {[%clk 0:00:32]}  Qe7 {[%clk 0:00:52]} 25. Nc6 {[%clk 0:00:32]}  Qb7 {[%clk 0:00:47]} 26. Ned4 {[%clk 0:00:31]}  Bd7 {[%clk 0:00:46]} 27. Rc1 {[%clk 0:00:25]}  Rc8 {[%clk 0:00:43]} 28. Na5 {[%clk 0:00:24]}  Rxc1+ {[%clk 0:00:43]} 29. Bxc1 {[%clk 0:00:24]}  Qc7 {[%clk 0:00:44]} 30. Bd2 {[%clk 0:00:23]}  Nf6 {[%clk 0:00:45]} 31. Qf1 {[%clk 0:00:21]}  Qb6 {[%clk 0:00:37]} 32. Qc1 {[%clk 0:00:19]}  Ne7 {[%clk 0:00:37]} 33. Bd3 {[%clk 0:00:19]}  Ne4 {[%clk 0:00:37]} 34. Be1 {[%clk 0:00:19]}  Bxf4 {[%clk 0:00:32]} 35. Bxe4 {[%clk 0:00:07]}  fxe4 {[%clk 0:00:32]} 36. Bf2 {[%clk 0:00:01]}  Bd6 {[%clk 0:00:28]} 37. Be1 {[%clk 0:00:01]}  e5 {[%clk 0:00:27]} 0-1


[Site "https://www.chess.com"]

[Event "Titled Tuesday Blitz November 01 Early 2022"]
[White "Darini, Pouria"]
[Black "Salem, A.R. Saleh"]
[WhiteFideId "12502200"]
[BlackFideId "9301348"]
[WhiteElo "2483"]
[BlackElo "2628"]
[Result "1/2-1/2"]
[Round "04"]
[TimeControl "180+1"]
[Date "2022.11.01"]
[WhiteClock "0:00:07"]
[BlackClock "0:00:06"]

1. e4 {[%clk 0:03:00]}  c5 {[%clk 0:03:00]} 2. Nf3 {[%clk 0:03:00]}  d6 {[%clk 0:03:01]} 3. d4 {[%clk 0:03:00]}  cxd4 {[%clk 0:03:02]} 4. Nxd4 {[%clk 0:03:01]}  Nf6 {[%clk 0:03:02]} 5. Nc3 {[%clk 0:03:01]}  a6 {[%clk 0:03:03]} 6. a4 {[%clk 0:02:59]}  Nc6 {[%clk 0:03:02]} 7. Nxc6 {[%clk 0:02:48]}  bxc6 {[%clk 0:03:03]} 8. a5 {[%clk 0:02:47]}  Rb8 {[%clk 0:03:04]} 9. Bd3 {[%clk 0:02:43]}  Nd7 {[%clk 0:03:04]} 10. O-O {[%clk 0:02:36]}  g6 {[%clk 0:03:04]} 11. b3 {[%clk 0:01:56]}  Bg7 {[%clk 0:03:04]} 12. Bb2 {[%clk 0:01:57]}  O-O {[%clk 0:03:03]} 13. Re1 {[%clk 0:01:43]}  Nc5 {[%clk 0:03:03]} 14. Bc4 {[%clk 0:01:36]}  Be6 {[%clk 0:02:43]} 15. Bf1 {[%clk 0:01:24]}  Qc7 {[%clk 0:02:22]} 16. Na4 {[%clk 0:01:17]}  Bxb2 {[%clk 0:01:49]} 17. Nxb2 {[%clk 0:01:17]}  Rb4 {[%clk 0:01:42]} 18. Nd3 {[%clk 0:01:01]}  Nxd3 {[%clk 0:01:36]} 19. Bxd3 {[%clk 0:01:01]}  c5 {[%clk 0:01:33]} 20. c4 {[%clk 0:00:17]}  Rfb8 {[%clk 0:01:32]} 21. Bc2 {[%clk 0:00:17]}  Rd8 {[%clk 0:01:12]} 22. Qe2 {[%clk 0:00:16]}  Rb7 {[%clk 0:01:03]} 23. h4 {[%clk 0:00:16]}  Qd7 {[%clk 0:00:54]} 24. h5 {[%clk 0:00:13]}  Qe8 {[%clk 0:00:55]} 25. hxg6 {[%clk 0:00:09]}  hxg6 {[%clk 0:00:53]} 26. f4 {[%clk 0:00:09]}  Bc8 {[%clk 0:00:46]} 27. e5 {[%clk 0:00:05]}  Qf8 {[%clk 0:00:43]} 28. Rad1 {[%clk 0:00:05]}  Qg7 {[%clk 0:00:33]} 29. Qe3 {[%clk 0:00:05]}  Bg4 {[%clk 0:00:32]} 30. Rd2 {[%clk 0:00:05]}  Rbd7 {[%clk 0:00:33]} 31. exd6 {[%clk 0:00:04]}  Rxd6 {[%clk 0:00:28]} 32. Rxd6 {[%clk 0:00:04]}  exd6 {[%clk 0:00:29]} 33. Qg3 {[%clk 0:00:02]}  Qd4+ {[%clk 0:00:28]} 34. Qf2 {[%clk 0:00:02]}  Qc3 {[%clk 0:00:28]} 35. Re3 {[%clk 0:00:02]}  Qxa5 {[%clk 0:00:28]} 36. f5 {[%clk 0:00:02]}  Qa1+ {[%clk 0:00:27]} 37. Re1 {[%clk 0:00:01]}  Qf6 {[%clk 0:00:24]} 38. fxg6 {[%clk 0:00:02]}  Qxf2+ {[%clk 0:00:24]} 39. Kxf2 {[%clk 0:00:02]}  fxg6 {[%clk 0:00:24]} 40. Bxg6 {[%clk 0:00:03]}  Kg7 {[%clk 0:00:23]} 41. Bc2 {[%clk 0:00:04]}  Kf6 {[%clk 0:00:22]} 42. Re3 {[%clk 0:00:04]}  a5 {[%clk 0:00:19]} 43. Rd3 {[%clk 0:00:04]}  Ke5 {[%clk 0:00:17]} 44. Rd5+ {[%clk 0:00:04]}  Kf6 {[%clk 0:00:18]} 45. Ke3 {[%clk 0:00:04]}  Be6 {[%clk 0:00:19]} 46. Rd2 {[%clk 0:00:04]}  a4 {[%clk 0:00:19]} 47. bxa4 {[%clk 0:00:03]}  Bxc4 {[%clk 0:00:19]} 48. Kf4 {[%clk 0:00:03]}  d5 {[%clk 0:00:19]} 49. g4 {[%clk 0:00:02]}  d4 {[%clk 0:00:18]} 50. g5+ {[%clk 0:00:03]}  Kg7 {[%clk 0:00:19]} 51. Bf5 {[%clk 0:00:02]}  Bb3 {[%clk 0:00:18]} 52. Rh2 {[%clk 0:00:02]}  Bg8 {[%clk 0:00:17]} 53. Ke5 {[%clk 0:00:02]}  c4 {[%clk 0:00:17]} 54. Rh4 {[%clk 0:00:02]}  d3 {[%clk 0:00:16]} 55. Rh1 {[%clk 0:00:02]}  c3 {[%clk 0:00:17]} 56. Bxd3 {[%clk 0:00:03]}  Rxd3 {[%clk 0:00:16]} 57. Rc1 {[%clk 0:00:03]}  Bb3 {[%clk 0:00:16]} 58. Ke4 {[%clk 0:00:03]}  Rh3 {[%clk 0:00:17]} 59. a5 {[%clk 0:00:03]}  c2 {[%clk 0:00:17]} 60. a6 {[%clk 0:00:04]}  Rh8 {[%clk 0:00:16]} 61. Kd4 {[%clk 0:00:04]}  Rc8 {[%clk 0:00:16]} 62. a7 {[%clk 0:00:04]}  Kg6 {[%clk 0:00:16]} 63. Kd3 {[%clk 0:00:04]}  Kxg5 {[%clk 0:00:16]} 64. Rg1+ {[%clk 0:00:03]}  Kf4 {[%clk 0:00:15]} 65. Rf1+ {[%clk 0:00:03]}  Ke5 {[%clk 0:00:13]} 66. Ra1 {[%clk 0:00:04]}  Ra8 {[%clk 0:00:09]} 67. Kc3 {[%clk 0:00:04]}  Rxa7 {[%clk 0:00:08]} 68. Re1+ {[%clk 0:00:05]}  Kd5 {[%clk 0:00:05]} 69. Kxb3 {[%clk 0:00:06]}  Rc7 {[%clk 0:00:06]} 70. Rc1 {[%clk 0:00:06]}  Kd4 {[%clk 0:00:06]} 71. Rxc2 {[%clk 0:00:07]}  Rxc2 {[%clk 0:00:06]} 72. Kxc2 {[%clk 0:00:07]} 1/2-1/2


[Site "https://www.chess.com"]